[Event "47th GRE-chT 2019"]
[Site "Patra"]
[Date "2019.07.06"]
[Round "7.8"]
[White "Spyropoulos, Nikolaos"]
[Black "Sotiropoulos, Anastasios-Theohar"]
[Result "1-0"]
[ECO "B12"]
[WhiteElo "2404"]
[BlackElo "1919"]
[Annotator "NA"]
[PlyCount "81"]
[EventDate "2019.07.02"]
[EventCountry "GRE"]
[SourceTitle "playchess.com"]
[Source "ChessBase"]
[SourceQuality "1"]
[TimeControl "5400+30"]

1. e4 {[%emt 0:00:00]} c6 {[%emt 0:00:00]} 2. d4 {[%emt 0:00:00]} d5 {[%emt 0:00:00]} 3. e5 {[%emt 0:00:00]} Bf5 {[%emt 0:00:00]} 4. h4 {[%emt 0:00:09]} h6 {[%emt 0:00:00]} 5. g4 {[%emt 0:00:05]} Bd7 {[%emt 0:00:00]} 6. h5 {[%emt 0:00:26]} c5 {[%emt 0:01:09]} 7. dxc5 {[%emt 0:06:33]} e6 {[%emt 0:01:56]} 8. Be3 {[%emt 0:01:59]} Qc7 {[%emt 0:03:17]} 9. f4 {[%emt 0:02:19]} Bxc5 {[%emt 0:00:13]} 10. Bxc5 {[%emt 0:00:24]} Qxc5 {[%emt 0:00:05]} 11. Qd2 {[%emt 0:00:38]} Nc6 {[%emt 0:13:23]} 12. Nc3 {[%emt 0:03:54]} a6 {[%emt 0:08:00]} 13. Nf3 {[%emt 0:12:22]} Nge7 {[%emt 0:04:46]} 14. Bd3 {[%emt 0:07:11]} O-O-O {[%emt 0:17:32]} 15. O-O-O {[%emt 0:02:37]} Kb8 {[%emt 0:05:32]} 16. Kb1 {[%emt 0:03:16]} Na7 {[%emt 0:03:46]} 17. Rhg1 {[%emt 0:01:40]} Bb5 {[%emt 0:05:54]} 18. Nxb5 {[%emt 0:11:18]} Nxb5 {[%emt 0:00:05]} 19. g5 {[%emt 0:00:12]} Nc6 {[%emt 0:06:13]} 20. gxh6 {[%emt 0:14:33]} gxh6 {[%emt 0:00:14]} 21. Rg7 {[%emt 0:00:20]} Rdf8 {[%emt 0:03:33]} 22. c3 {[%emt 0:08:13]} Nc7 {[%emt 0:05:31]} 23. Rdg1 {[%emt 0:05:03]} Ne8 {[%emt 0:02:11]} 24. R7g2 {[%emt 0:02:35]} Nc7 {[%emt 0:08:28]} 25. Bc2 {[%emt 0:03:23]} Qe7 {[%emt 0:01:57]} 26. Qf2 {[%emt 0:01:41]} Qd8 {[%emt 0:02:55]} 27. Rg7 {[%emt 0:01:28]} Ne8 {[%emt 0:00:16]} 28. R7g4 {[%emt 0:00:43]} Qe7 {[%emt 0:06:09]} 29. Nh4 {[%emt 0:00:30]} Nc7 {[%emt 0:00:23]} 30. Bd3 {[%emt 0:03:19]} Qd7 {[%emt 0:00:27]} 31. a3 {[%emt 0:00:42]} d4 {[%emt 0:00:46]} 32. c4 {[%emt 0:00:11]} a5 {[%emt 0:00:28]} 33. Qd2 {[%emt 0:00:43]} Rc8 {[%emt 0:00:36]} 34. Rg7 {[%emt 0:01:16]} Ne8 {[%emt 0:00:10]} 35. R7g3 {[%emt 0:00:22]} Qd8 {[%emt 0:00:54]} 36. Nf3 {[%emt 0:00:06]} Rf8 {[%emt 0:00:36]} 37. f5 {[%emt 0:00:48]} Rh8 {[%emt 0:00:14]} 38. Qf4 {[%emt 0:01:07]} f6 {[%emt 0:00:35]} 39. exf6+ {[%emt 0:01:49]} e5 {[%emt 0:00:09]} 40. Nxe5 {[%emt 0:00:00]} Ka8 {[%emt 0:00:00]} 41. Nf7 {[%emt 0:00:00]} 1-0

[Event "47th GRE-chT 2019"]
[Site "Patra"]
[Date "2019.07.06"]
[Round "7.8"]
[White "Kazakos, Markos"]
[Black "Kouskoutis, Georgios-Alexandros"]
[Result "1/2-1/2"]
[ECO "A37"]
[WhiteElo "2069"]
[BlackElo "2256"]
[Annotator "NA"]
[PlyCount "106"]
[EventDate "2019.07.02"]
[EventCountry "GRE"]
[SourceTitle "playchess.com"]
[Source "ChessBase"]
[SourceQuality "1"]
[TimeControl "5400+30"]

1. Nf3 {[%emt 0:00:00]} c5 {[%emt 0:00:00]} 2. g3 {[%emt 0:00:00]} g6 {[%emt 0:00:00]} 3. Bg2 {[%emt 0:00:03]} Bg7 {[%emt 0:00:34]} 4. O-O {[%emt 0:00:07]} Nc6 {[%emt 0:04:20]} 5. c4 {[%emt 0:00:27]} e5 {[%emt 0:00:23]} 6. Nc3 {[%emt 0:00:09]} Nge7 {[%emt 0:02:59]} 7. d3 {[%emt 0:00:19]} O-O {[%emt 0:03:29]} 8. Ne1 {[%emt 0:01:14]} d6 {[%emt 0:02:13]} 9. Nc2 {[%emt 0:01:43]} Rb8 {[%emt 0:01:54]} 10. Rb1 {[%emt 0:01:51]} a6 {[%emt 0:03:59]} 11. b4 {[%emt 0:04:10]} cxb4 {[%emt 0:00:37]} 12. Nxb4 {[%emt 0:01:43]} Bd7 {[%emt 0:19:09]} 13. Bd2 {[%emt 0:09:55]} Nxb4 {[%emt 0:00:09]} 14. Rxb4 {[%emt 0:12:22]} b5 {[%emt 0:01:18]} 15. cxb5 {[%emt 0:01:18]} axb5 {[%emt 0:05:50]} 16. Qb1 {[%emt 0:08:27]} Qe8 {[%emt 0:01:14]} 17. Rc1 {[%emt 0:08:59]} f5 {[%emt 0:03:12]} 18. Bg5 {[%emt 0:11:46]} Nc6 {[%emt 0:01:54]} 19. Rxb5 {[%emt 0:00:31]} Nd4 {[%emt 0:03:52]} 20. Rxb8 {[%emt 0:00:22]} Qxb8 {[%emt 0:10:14]} 21. Bd5+ {[%emt 0:04:34]} Kh8 {[%emt 0:04:20]} 22. e3 {[%emt 0:09:16]} Qxb1 {[%emt 0:00:06]} 23. Rxb1 {[%emt 0:00:10]} Ne6 {[%emt 0:02:12]} 24. Be7 {[%emt 0:00:11]} Rc8 {[%emt 0:09:05]} 25. Nb5 {[%emt 0:09:47]} Rb8 {[%emt 0:12:20]} 26. a4 {[%emt 0:00:13]} Rb6 {[%emt 0:02:25]} 27. a5 {[%emt 0:05:07]} Rxb5 {[%emt 0:00:07]} 28. Rxb5 {[%emt 0:00:02]} Bxb5 {[%emt 0:00:09]} 29. Bxe6 {[%emt 0:00:14]} Bxd3 {[%emt 0:00:53]} 30. Bc8 {[%emt 0:00:34]} d5 {[%emt 0:00:27]} 31. a6 {[%emt 0:00:12]} Bxa6 {[%emt 0:00:08]} 32. Bxa6 {[%emt 0:00:02]} Kg8 {[%emt 0:02:06]} 33. Bc8 {[%emt 0:00:53]} Kf7 {[%emt 0:00:20]} 34. Bd6 {[%emt 0:02:09]} e4 {[%emt 0:00:36]} 35. Bc5 {[%emt 0:00:08]} Bc3 {[%emt 0:01:14]} 36. Kf1 {[%emt 0:02:26]} Ba5 {[%emt 0:01:25]} 37. Ke2 {[%emt 0:00:23]} Bc3 {[%emt 0:02:25]} 38. Bd7 {[%emt 0:01:30]} Ba5 {[%emt 0:00:30]} 39. Kd1 {[%emt 0:00:15]} Bc3 {[%emt 0:00:00]} 40. Ba4 {[%emt 0:00:00]} Ba5 {[%emt 0:00:00]} 41. Ba3 {[%emt 0:00:00]} Bc3 {[%emt 0:00:00]} 42. Bb3 {[%emt 0:00:00]} Ke6 {[%emt 0:00:00]} 43. Bc1 {[%emt 0:00:00]} g5 {[%emt 0:00:00]} 44. Bd2 {[%emt 0:00:00]} Be5 {[%emt 0:00:00]} 45. Kc2 {[%emt 0:00:00]} h5 {[%emt 0:00:00]} 46. Ba4 {[%emt 0:00:00]} h4 {[%emt 0:00:00]} 47. Kb3 {[%emt 0:00:00]} Bd6 {[%emt 0:00:00]} 48. Bb5 {[%emt 0:00:00]} Bc5 {[%emt 0:03:40]} 49. Ba6 {[%emt 0:01:04]} f4 {[%emt 0:01:01]} 50. Bc8+ {[%emt 0:02:14]} Kf7 {[%emt 0:01:26]} 51. exf4 {[%emt 0:00:39]} Bxf2 {[%emt 0:00:38]} 52. fxg5 {[%emt 0:00:36]} hxg3 {[%emt 0:00:07]} 53. hxg3 {[%emt 0:00:14]} e3 {[%emt 4:46:00]} 1/2-1/2

[Event "47th GRE-chT 2019"]
[Site "Patra"]
[Date "2019.07.06"]
[Round "7.9"]
[White "Chatzieleftheriou, Andreas"]
[Black "Tsarsitalidis, Konstantinos"]
[Result "0-1"]
[ECO "B31"]
[WhiteElo "2208"]
[BlackElo "2001"]
[Annotator "NA"]
[PlyCount "74"]
[EventDate "2019.07.02"]
[EventCountry "GRE"]
[SourceTitle "playchess.com"]
[Source "ChessBase"]
[SourceQuality "1"]
[TimeControl "5400+30"]

1. e4 {[%emt 0:00:00]} c5 {[%emt 0:00:00]} 2. Be2 {[%emt 0:00:00]} a6 {[%emt 0:00:18]} 3. d3 {[%emt 0:00:00]} Nc6 {[%emt 0:01:45]} 4. f4 {[%emt 0:00:24]} e6 {[%emt 0:02:29]} 5. Nf3 {[%emt 0:00:47]} d5 {[%emt 0:01:10]} 6. O-O {[%emt 0:00:50]} Be7 {[%emt 0:00:15]} 7. c3 {[%emt 0:02:55]} d4 {[%emt 0:01:35]} 8. a4 {[%emt 0:04:01]} Rb8 {[%emt 0:01:35]} 9. Na3 {[%emt 0:02:08]} b5 {[%emt 0:02:15]} 10. axb5 {[%emt 0:03:39]} axb5 {[%emt 0:00:07]} 11. Nc2 {[%emt 0:00:23]} Nf6 {[%emt 0:02:01]} 12. Kh1 {[%emt 0:02:02]} O-O {[%emt 0:03:43]} 13. cxd4 {[%emt 0:12:24]} cxd4 {[%emt 0:05:06]} 14. b3 {[%emt 0:00:18]} Bc5 {[%emt 0:08:04]} 15. Bb2 {[%emt 0:00:32]} Bb7 {[%emt 0:03:15]} 16. Qe1 {[%emt 0:05:24]} Nh5 {[%emt 0:06:03]} 17. b4 {[%emt 0:03:36]} Bb6 {[%emt 0:02:30]} 18. Nd2 {[%emt 0:02:30]} Nf6 {[%emt 0:01:21]} 19. Nb3 {[%emt 0:00:22]} Rc8 {[%emt 0:01:55]} 20. Qd2 {[%emt 0:04:02]} Qd7 {[%emt 0:02:02]} 21. Bf3 {[%emt 0:04:27]} Rfd8 {[%emt 0:05:24]} 22. g4 {[%emt 0:06:34]} Qe7 {[%emt 0:03:30]} 23. Na5 {[%emt 0:07:49]} Bxa5 {[%emt 0:01:27]} 24. bxa5 {[%emt 0:00:03]} Ra8 {[%emt 0:00:24]} 25. e5 {[%emt 0:01:19]} Nd5 {[%emt 0:09:12]} 26. Nxd4 {[%emt 0:00:43]} Nxd4 {[%emt 0:00:59]} 27. Bxd4 {[%emt 0:00:01]} Nb4 {[%emt 0:00:32]} 28. Bb6 {[%emt 0:00:39]} Rxd3 {[%emt 0:01:19]} 29. Qg2 {[%emt 0:00:39]} Rxf3 {[%emt 0:00:59]} 30. Rxf3 {[%emt 0:00:04]} Nd5 {[%emt 0:07:52]} 31. Rb1 {[%emt 0:16:33]} Nxf4 {[%emt 0:02:04]} 32. Qg3 {[%emt 0:00:13]} Ne2 {[%emt 0:01:14]} 33. Qf2 {[%emt 0:00:49]} Nc3 {[%emt 0:00:28]} 34. Kg1 {[%emt 0:05:40]} Nxb1 {[%emt 0:00:43]} 35. Rb3 {[%emt 0:00:36]} Qd7 {[%emt 0:05:41]} 36. Rxb1 {[%emt 0:00:42]} Qd5 {[%emt 0:00:08]} 37. Kf1 {[%emt 0:00:25]} Qd3+ {[%emt 0:00:15]} 0-1

[Event "47th GRE-chT 2019"]
[Site "Patra"]
[Date "2019.07.06"]
[Round "7.9"]
[White "Gavriilidis, Orestis"]
[Black "Damianou, Ioannis"]
[Result "1-0"]
[ECO "A13"]
[WhiteElo "1906"]
[BlackElo "2154"]
[Annotator "NA"]
[PlyCount "121"]
[EventDate "2019.07.02"]
[EventCountry "GRE"]
[SourceTitle "playchess.com"]
[Source "ChessBase"]
[SourceQuality "1"]
[TimeControl "5400+30"]

1. c4 {[%emt 0:00:00]} e6 {[%emt 0:00:00]} 2. g3 {[%emt 0:00:00]} Nf6 {[%emt 0:00:03]} 3. Bg2 {[%emt 0:00:01]} d5 {[%emt 0:00:13]} 4. Nf3 {[%emt 0:00:28]} Be7 {[%emt 0:00:15]} 5. d4 {[%emt 0:00:21]} O-O {[%emt 0:00:12]} 6. O-O {[%emt 0:00:43]} c6 {[%emt 0:00:09]} 7. Qc2 {[%emt 0:00:22]} b6 {[%emt 0:00:23]} 8. Rd1 {[%emt 0:01:28]} Nbd7 {[%emt 0:04:19]} 9. Bf4 {[%emt 0:00:15]} Nh5 {[%emt 0:02:30]} 10. Bc1 {[%emt 0:05:20]} f5 {[%emt 0:07:58]} 11. Ne5 {[%emt 0:04:42]} Nxe5 {[%emt 0:08:54]} 12. dxe5 {[%emt 0:00:09]} g5 {[%emt 0:00:10]} 13. cxd5 {[%emt 0:07:13]} cxd5 {[%emt 0:00:25]} 14. e4 {[%emt 0:03:02]} f4 {[%emt 0:04:59]} 15. Qe2 {[%emt 0:07:00]} Qe8 {[%emt 0:03:58]} 16. exd5 {[%emt 0:01:55]} Bb7 {[%emt 0:00:11]} 17. Nc3 {[%emt 0:00:37]} Bc5 {[%emt 0:03:20]} 18. Ne4 {[%emt 0:04:57]} fxg3 {[%emt 0:13:49]} 19. hxg3 {[%emt 0:06:06]} Nxg3 {[%emt 0:03:45]} 20. Nxg3 {[%emt 0:00:05]} Rxf2 {[%emt 0:00:12]} 21. Qxf2 {[%emt 0:01:04]} Bxf2+ {[%emt 0:00:05]} 22. Kxf2 {[%emt 0:00:04]} exd5 {[%emt 0:12:37]} 23. Re1 {[%emt 0:02:56]} Qg6 {[%emt 0:02:06]} 24. Bd2 {[%emt 0:09:03]} h5 {[%emt 0:04:17]} 25. Kg1 {[%emt 0:14:26]} h4 {[%emt 0:05:02]} 26. e6 {[%emt 0:03:36]} hxg3 {[%emt 0:03:21]} 27. Re5 {[%emt 0:07:16]} Qd3 {[%emt 0:09:48]} 28. Rxg5+ {[%emt 0:02:30]} Kh7 {[%emt 0:00:13]} 29. Rh5+ {[%emt 0:06:34]} Kg6 {[%emt 0:00:43]} 30. Rg5+ {[%emt 0:00:32]} Kf6 {[%emt 0:01:17]} 31. Rf1+ {[%emt 0:00:11]} Kxe6 {[%emt 0:00:16]} 32. Bh3+ {[%emt 0:00:19]} Kd6 {[%emt 0:00:55]} 33. Bb4+ {[%emt 0:00:12]} Kc6 {[%emt 0:01:37]} 34. Rf6+ {[%emt 0:00:10]} Kb5 {[%emt 0:00:07]} 35. Bf1 {[%emt 0:00:05]} Qxf1+ {[%emt 0:00:09]} 36. Kxf1 {[%emt 0:01:20]} Kxb4 {[%emt 0:00:06]} 37. Rf4+ {[%emt 0:00:42]} Kc5 {[%emt 0:01:29]} 38. Rxg3 {[%emt 0:00:14]} d4 {[%emt 0:00:50]} 39. Rg5+ {[%emt 0:02:48]} Kc4 {[%emt 0:00:49]} 40. Rgg4 {[%emt 0:00:00]} Rd8 {[%emt 0:00:00]} 41. Ke2 {[%emt 0:00:00]} a5 {[%emt 0:00:00]} 42. Kd2 {[%emt 0:00:00]} a4 {[%emt 0:00:00]} 43. Rg7 {[%emt 0:00:00]} Bc6 {[%emt 0:00:00]} 44. Rf6 {[%emt 0:00:00]} Rc8 {[%emt 0:00:00]} 45. Rgg6 {[%emt 0:00:00]} Kc5 {[%emt 0:00:00]} 46. Rg5+ {[%emt 0:00:00]} Kc4 {[%emt 0:00:00]} 47. Rf1 {[%emt 0:00:00]} Kb4 {[%emt 0:00:00]} 48. Rc1 {[%emt 0:00:00]} Bb7 {[%emt 0:00:00]} 49. a3+ {[%emt 0:00:00]} Kb3 {[%emt 0:00:00]} 50. Rb5+ {[%emt 0:00:00]} Ka2 {[%emt 0:00:00]} 51. Rxc8 {[%emt 0:00:00]} Bxc8 {[%emt 0:00:00]} 52. Rxb6 {[%emt 0:00:00]} Bf5 {[%emt 0:00:00]} 53. Rb4 {[%emt 0:05:20]} Be6 {[%emt 0:00:00]} 54. Kc1 {[%emt 0:05:55]} d3 {[%emt 0:00:00]} 55. Rxa4 {[%emt 0:00:50]} d2+ {[%emt 0:00:00]} 56. Kxd2 {[%emt 0:00:04]} Kxb2 {[%emt 0:00:00]} 57. Ra7 {[%emt 0:01:43]} Kb3 {[%emt 0:00:00]} 58. Kd3 {[%emt 0:00:49]} Bc4+ {[%emt 0:00:00]} 59. Kd4 {[%emt 0:00:12]} Bb5 {[%emt 0:00:00]} 60. Rb7 {[%emt 0:00:30]} Ka4 {[%emt 0:00:00]} 61. Ke4 1-0

[Event "47th GRE-chT 2019"]
[Site "Patra"]
[Date "2019.07.06"]
[Round "7.10"]
[White "Tsarsitalidis, Christos"]
[Black "Merkos, Thomas"]
[Result "1-0"]
[ECO "B22"]
[WhiteElo "1802"]
[BlackElo "1665"]
[Annotator "NA"]
[PlyCount "79"]
[EventDate "2019.07.02"]
[EventCountry "GRE"]
[SourceTitle "playchess.com"]
[Source "ChessBase"]
[SourceQuality "1"]
[TimeControl "5400+30"]

1. e4 {[%emt 0:00:00]} c5 {[%emt 0:00:00]} 2. Nf3 {[%emt 0:00:00]} e6 {[%emt 0:00:00]} 3. c3 {[%emt 0:00:00]} d5 {[%emt 0:00:00]} 4. exd5 {[%emt 0:00:03]} exd5 {[%emt 0:00:00]} 5. d4 {[%emt 0:00:13]} Nc6 {[%emt 0:02:26]} 6. Be2 {[%emt 0:00:35]} Nf6 {[%emt 0:00:53]} 7. O-O {[%emt 0:00:38]} Bd6 {[%emt 0:02:00]} 8. dxc5 {[%emt 0:00:13]} Bxc5 {[%emt 0:00:23]} 9. Bg5 {[%emt 0:00:47]} Be6 {[%emt 0:03:09]} 10. Nd4 {[%emt 0:18:43]} Bxd4 {[%emt 0:00:07]} 11. cxd4 {[%emt 0:00:29]} Qb6 {[%emt 0:07:41]} 12. Nc3 {[%emt 0:06:03]} Qxd4 {[%emt 0:11:44]} 13. Qb3 {[%emt 0:17:57]} Qb4 {[%emt 0:11:46]} 14. Qxb4 {[%emt 0:00:11]} Nxb4 {[%emt 0:00:16]} 15. Rad1 {[%emt 0:17:54]} Ne4 {[%emt 0:02:25]} 16. Bb5+ {[%emt 0:01:18]} Nc6 {[%emt 0:02:00]} 17. Nxe4 {[%emt 0:00:11]} dxe4 {[%emt 0:11:01]} 18. Rd6 {[%emt 0:06:44]} O-O {[%emt 0:01:36]} 19. Bxc6 {[%emt 0:00:05]} bxc6 {[%emt 0:00:06]} 20. Rxc6 {[%emt 0:00:11]} Bxa2 {[%emt 0:00:08]} 21. Ra1 {[%emt 0:02:14]} Bd5 {[%emt 0:02:11]} 22. Rc5 {[%emt 0:05:31]} Be6 {[%emt 0:01:23]} 23. Re5 {[%emt 0:01:03]} Rfb8 {[%emt 0:01:49]} 24. Rxe4 Rb7 {[%emt 2:25:08]} 25. b3 {[%emt 0:00:42]} Rxb3 26. h3 {[%emt 0:01:06]} Rb2 {[%emt 0:00:00]} 27. Be3 {[%emt 0:01:45]} h6 28. Rc4 {[%emt 0:03:43]} a6 {[%emt 0:00:00]} 29. Rca4 {[%emt 0:00:00]} Bc8 {[%emt 0:00:00]} 30. Rd1 {[%emt 0:00:00]} Bb7 {[%emt 0:00:00]} 31. Rg4 {[%emt 0:00:59]} Rc2 {[%emt 0:00:00]} 32. Bxh6 {[%emt 0:00:40]} g6 {[%emt 0:00:00]} 33. Bg5 {[%emt 0:13:13]} f5 {[%emt 0:00:00]} 34. Rh4 {[%emt 0:01:23]} Rf8 {[%emt 0:00:00]} 35. Rd7 {[%emt 0:00:39]} Bc8 {[%emt 0:00:00]} 36. Rdh7 {[%emt 0:01:14]} Re2 {[%emt 0:00:00]} 37. Rh8+ {[%emt 0:00:09]} Kf7 {[%emt 0:00:00]} 38. R4h7+ {[%emt 0:00:07]} Ke8 {[%emt 0:00:00]} 39. Rxf8+ {[%emt 0:00:03]} Kxf8 {[%emt 0:00:00]} 40. Rh8+ {[%emt 0:00:32]} 1-0

[Event "47th GRE-chT 2019"]
[Site "Patra"]
[Date "2019.07.06"]
[Round "7.10"]
[White "Christodoulakis, Michail"]
[Black "Kapia, Aggeliki"]
[Result "1-0"]
[ECO "C02"]
[WhiteElo "1224"]
[BlackElo "1168"]
[Annotator "NA"]
[PlyCount "73"]
[EventDate "2019.07.02"]
[EventCountry "GRE"]
[SourceTitle "playchess.com"]
[Source "ChessBase"]
[SourceQuality "1"]
[TimeControl "5400+30"]

1. e4 {[%emt 0:00:00]} e6 {[%emt 0:00:00]} 2. d4 d5 {[%emt 0:00:05]} 3. e5 c5 {[%emt 0:00:30]} 4. c3 Nc6 {[%emt 0:00:30]} 5. Nf3 Bd7 {[%emt 0:00:30]} 6. Be3 cxd4 {[%emt 0:00:30]} 7. cxd4 Nge7 {[%emt 0:00:30]} 8. Bd3 Nb4 {[%emt 0:00:30]} 9. Nc3 Nxd3+ {[%emt 0:00:30]} 10. Qxd3 Nf5 {[%emt 0:00:30]} 11. g4 Nxe3 {[%emt 0:00:30]} 12. Qxe3 Be7 {[%emt 0:00:30]} 13. O-O Rc8 {[%emt 0:00:30]} 14. h3 h6 {[%emt 0:00:30]} 15. Rac1 a6 {[%emt 0:00:30]} 16. Ne2 Rxc1 {[%emt 0:00:30]} 17. Rxc1 Bb5 {[%emt 0:00:30]} 18. Nc3 Bc6 {[%emt 0:00:30]} 19. Qd2 O-O {[%emt 0:00:30]} 20. b3 Qd7 {[%emt 0:00:30]} 21. Qb2 Rc8 {[%emt 0:00:30]} 22. a3 Qd8 {[%emt 0:00:30]} 23. Rc2 Qf8 {[%emt 0:00:30]} 24. b4 a5 {[%emt 0:00:30]} 25. Na2 axb4 {[%emt 0:00:30]} 26. Nxb4 Bd7 {[%emt 0:00:30]} 27. Rxc8 Qxc8 {[%emt 0:00:30]} 28. Nd2 Bg5 {[%emt 0:00:30]} 29. Nb3 b6 {[%emt 0:00:30]} 30. Kg2 Ba4 {[%emt 0:00:30]} 31. Nd2 f6 {[%emt 0:00:30]} 32. Nf3 Bc1 {[%emt 0:00:30]} 33. Qa1 Qc4 {[%emt 0:00:30]} 34. Ne1 Bb5 {[%emt 0:00:30]} 35. Ned3 Bd2 {[%emt 0:00:30]} 36. exf6 gxf6 {[%emt 0:00:30]} 37. Qb2 1-0

[Event "47th GRE-chT 2019"]
[Site "Patra"]
[Date "2019.07.06"]
[Round "7.11"]
[White "Saric, Ivan"]
[Black "Laznicka, Viktor"]
[Result "1/2-1/2"]
[ECO "C65"]
[WhiteElo "2681"]
[BlackElo "2658"]
[Annotator "RC"]
[PlyCount "93"]
[EventDate "2019.07.02"]
[EventCountry "GRE"]
[SourceTitle "playchess.com"]
[Source "ChessBase"]
[SourceQuality "1"]
[TimeControl "5400+30"]

1. e4 {[%emt 0:00:00]} e5 {[%emt 0:00:00]} 2. Nf3 {[%emt 0:00:00]} Nc6 {[%emt 0:00:00]} 3. Bb5 {[%emt 0:00:07]} Nf6 {[%emt 0:00:00]} 4. d3 {[%emt 0:00:16]} Bc5 {[%emt 0:00:00]} 5. Nbd2 {[%emt 0:00:08]} Nd4 {[%emt 0:00:07]} 6. Nxd4 {[%emt 0:00:05]} Bxd4 {[%emt 0:00:05]} 7. c3 {[%emt 0:00:08]} Bb6 {[%emt 0:00:05]} 8. d4 {[%emt 0:00:51]} c6 {[%emt 0:00:16]} 9. dxe5 {[%emt 0:00:14]} cxb5 {[%emt 0:00:07]} 10. exf6 {[%emt 0:00:03]} Qxf6 {[%emt 0:00:10]} 11. O-O {[%emt 0:00:05]} O-O {[%emt 0:00:06]} 12. a4 {[%emt 0:02:20]} bxa4 {[%emt 0:00:10]} 13. Nc4 {[%emt 0:00:47]} Bc7 {[%emt 0:00:10]} 14. Ne3 {[%emt 0:02:33]} b5 {[%emt 0:00:23]} 15. Nd5 {[%emt 0:00:10]} Qd8 {[%emt 0:00:06]} 16. c4 {[%emt 0:02:29]} a6 {[%emt 0:07:45]} 17. Ra3 {[%emt 0:02:18]} Bb7 {[%emt 0:01:42]} 18. Rh3 {[%emt 0:11:03]} Bxd5 {[%emt 0:01:20]} 19. exd5 {[%emt 0:00:16]} Qf6 {[%emt 0:32:54]} 20. cxb5 {[%emt 0:01:19]} Bb6 {[%emt 0:16:57]} 21. Qxa4 {[%emt 0:01:45]} Rfe8 {[%emt 0:08:17]} 22. Qc2 {[%emt 0:10:55]} Qg6 {[%emt 0:00:40]} 23. Qxg6 {[%emt 0:00:47]} hxg6 {[%emt 0:00:32]} 24. bxa6 {[%emt 0:00:39]} Rxa6 {[%emt 0:00:08]} 25. Rd3 {[%emt 0:02:11]} Ra4 {[%emt 0:16:09]} 26. g3 {[%emt 0:07:06]} Re2 {[%emt 0:02:59]} 27. Bd2 {[%emt 0:15:00]} Rd4 {[%emt 0:01:16]} 28. Rxd4 {[%emt 0:00:04]} Bxd4 {[%emt 0:00:06]} 29. Bc3 {[%emt 0:00:06]} Bxc3 {[%emt 0:01:47]} 30. bxc3 {[%emt 0:00:04]} Rc2 {[%emt 0:06:49]} 31. Ra1 {[%emt 0:02:51]} Kf8 {[%emt 0:00:41]} 32. Ra8+ {[%emt 0:00:35]} Ke7 {[%emt 0:00:05]} 33. Rc8 {[%emt 0:00:06]} g5 {[%emt 0:00:55]} 34. h3 {[%emt 0:01:39]} Kd6 {[%emt 0:01:18]} 35. c4 {[%emt 0:00:09]} Ke5 {[%emt 0:00:49]} 36. Kg2 {[%emt 0:01:21]} Rc3 {[%emt 0:00:35]} 37. Re8+ {[%emt 0:04:13]} Kd6 {[%emt 0:00:36]} 38. Re4 {[%emt 0:00:33]} f5 {[%emt 0:01:23]} 39. Re8 {[%emt 0:00:05]} Rxc4 {[%emt 0:00:16]} 40. Rg8 {[%emt 0:00:00]} g4 {[%emt 0:00:00]} 41. h4 {[%emt 0:00:00]} Kxd5 {[%emt 0:00:00]} 42. Rxg7 {[%emt 0:00:00]} Ke6 {[%emt 0:00:00]} 43. h5 {[%emt 0:00:00]} Rc8 {[%emt 0:00:00]} 44. h6 {[%emt 0:00:00]} Rh8 {[%emt 0:00:00]} 45. h7 {[%emt 0:00:00]} d5 {[%emt 0:00:00]} 46. Rg6+ {[%emt 0:00:00]} Kf7 {[%emt 0:00:00]} 47. Rd6 {[%emt 0:00:00]} 1/2-1/2

[Event "47th GRE-chT 2019"]
[Site "Patra"]
[Date "2019.07.06"]
[Round "7.11"]
[White "Banikas, Hristos"]
[Black "Tilicheev, Viacheslav"]
[Result "1-0"]
[ECO "A05"]
[WhiteElo "2601"]
[BlackElo "2525"]
[Annotator "RC"]
[PlyCount "109"]
[EventDate "2019.07.02"]
[EventCountry "GRE"]
[SourceTitle "playchess.com"]
[Source "ChessBase"]
[SourceQuality "1"]
[TimeControl "5400+30"]

1. Nf3 {[%emt 0:02:46]} Nf6 {[%emt 0:00:00]} 2. c4 {[%emt 0:00:05]} e6 {[%emt 0:00:00]} 3. b3 {[%emt 0:00:11]} d5 {[%emt 0:00:12]} 4. Bb2 {[%emt 0:00:06]} Be7 {[%emt 0:00:15]} 5. e3 {[%emt 0:00:10]} b6 {[%emt 0:00:04]} 6. cxd5 {[%emt 0:00:54]} exd5 {[%emt 0:00:11]} 7. Bb5+ {[%emt 0:00:38]} c6 {[%emt 0:02:45]} 8. Be2 {[%emt 0:00:04]} O-O {[%emt 0:01:42]} 9. O-O {[%emt 0:00:05]} Bb7 {[%emt 0:07:26]} 10. Nc3 {[%emt 0:00:35]} Nbd7 {[%emt 0:00:07]} 11. Qc2 {[%emt 0:00:18]} Rc8 {[%emt 0:00:52]} 12. Rac1 {[%emt 0:00:15]} Bd6 {[%emt 0:09:54]} 13. Rfe1 {[%emt 0:05:42]} Qe7 {[%emt 0:00:55]} 14. Bf1 {[%emt 0:00:27]} Ba3 {[%emt 0:02:01]} 15. Bxa3 {[%emt 0:01:05]} Qxa3 {[%emt 0:01:46]} 16. g3 {[%emt 0:00:07]} Qd6 {[%emt 0:02:57]} 17. Qb1 {[%emt 0:02:44]} c5 {[%emt 0:04:21]} 18. d4 {[%emt 0:00:51]} Ne4 {[%emt 0:02:06]} 19. Bg2 {[%emt 0:03:05]} cxd4 {[%emt 0:04:21]} 20. Nxe4 {[%emt 0:03:20]} dxe4 {[%emt 0:00:06]} 21. Nxd4 {[%emt 0:00:08]} Qe5 {[%emt 0:00:41]} 22. b4 {[%emt 0:01:37]} Nf6 {[%emt 0:07:19]} 23. a3 {[%emt 0:01:42]} Qh5 {[%emt 0:04:49]} 24. Rxc8 {[%emt 0:01:57]} Rxc8 {[%emt 0:00:38]} 25. Rc1 {[%emt 0:00:07]} Qg4 {[%emt 0:02:16]} 26. Nb5 {[%emt 0:02:16]} a6 {[%emt 0:06:02]} 27. Rxc8+ {[%emt 0:02:45]} Qxc8 {[%emt 0:00:48]} 28. Nd6 {[%emt 0:00:09]} Qc6 {[%emt 0:00:07]} 29. Qd1 {[%emt 0:00:34]} h6 {[%emt 0:00:55]} 30. Bf1 {[%emt 0:02:40]} b5 {[%emt 0:00:26]} 31. Qd4 {[%emt 0:03:21]} Bc8 {[%emt 0:00:41]} 32. Nxc8 {[%emt 0:07:20]} Qxc8 {[%emt 0:00:07]} 33. Qd6 {[%emt 0:00:04]} Qe6 {[%emt 0:03:34]} 34. Qxe6 {[%emt 0:02:36]} fxe6 {[%emt 0:00:09]} 35. Be2 {[%emt 0:00:08]} Kf7 {[%emt 0:00:29]} 36. Kf1 {[%emt 0:00:05]} Nd5 {[%emt 0:01:34]} 37. Ke1 {[%emt 0:03:15]} Nc3 {[%emt 0:00:47]} 38. Bf1 {[%emt 0:04:08]} Nb1 {[%emt 0:01:45]} 39. Bg2 {[%emt 0:00:30]} Nxa3 {[%emt 0:00:52]} 40. Kd2 {[%emt 0:00:00]} a5 {[%emt 0:00:00]} 41. bxa5 {[%emt 0:00:00]} Nc4+ {[%emt 0:00:00]} 42. Kc3 {[%emt 0:00:00]} Nxa5 {[%emt 0:00:00]} 43. Bxe4 {[%emt 0:00:00]} Nc4 {[%emt 0:00:00]} 44. Bd3 {[%emt 0:00:00]} Ne5 {[%emt 0:00:00]} 45. Be2 {[%emt 0:00:00]} Kf6 {[%emt 0:00:00]} 46. Kb4 {[%emt 0:00:00]} Nf7 {[%emt 0:00:00]} 47. Kxb5 {[%emt 0:00:00]} Nd6+ {[%emt 0:00:00]} 48. Kb4 {[%emt 0:00:00]} Ne4 {[%emt 0:00:00]} 49. f3 {[%emt 0:00:00]} Ng5 {[%emt 0:00:00]} 50. Kc5 {[%emt 0:00:00]} g6 {[%emt 0:00:00]} 51. f4 {[%emt 0:00:00]} Nf7 {[%emt 0:00:00]} 52. e4 {[%emt 0:00:00]} Ke7 {[%emt 0:00:07]} 53. e5 {[%emt 0:00:00]} Nd8 {[%emt 0:00:19]} 54. Kb6 {[%emt 0:00:00]} g5 {[%emt 0:00:34]} 55. Kc7 {[%emt 0:00:00]} 1-0